Cogmind - Beta 14 @@@ ROGUE MODE // 2024.09.22 @ 14:55:23 Player: puppuppit Result: Destroyed by 3D-ZHL(R) with Subdweller Machine Gun Performance ------------- Evolutions (0) 0 Regions Visited (3) 600 Robots Destroyed (96) 480 Value Destroyed (974) 974 Prototype IDs (7) 140 Alien Tech Used (0) 0 Bonus (0) 0 TOTAL SCORE: 2194 Bonus ------- None Cogmind --------- Core Integrity 0/250 Matter 10/300 Energy 197/200 System Corruption 2% Temperature Cool (0) Movement Rolling (110) Location -10/Subcaves Parts ------- > --- POWER (1) -------- Subdweller Power Source > --- PROPULSION (2) --- Subdweller Monowheel > --- UTILITY (2) ------ Small Storage Unit Structural Scanner > --- WEAPON (2) ------- Assault Rifle Slug Cannon > --- INVENTORY (8) ---- High-capacity Matter Pod (200) Makeshift Hacking Suite Assault Rifle Assault Rifle Subdweller Machine Gun Grenade Launcher Peak State ------------ > --- POWER ------------ Light Ion Engine > --- PROPULSION ------- Hover Unit Hover Unit > --- UTILITY ---------- Decoy Drone Bay > --- WEAPON ----------- Assault Rifle Assault Rifle > --- INVENTORY -------- Assault Rifle Assault Rifle Grenade Launcher [Rating: 19] Favorites ----------- Power Light Ion Engine Engine Light Ion Engine Propulsion Hover Unit Wheel Wheel Hover Unit Hover Unit Utility Small Storage Unit Device Structural Scanner Storage Small Storage Unit Processor Targeting Computer Weapon Assault Rifle Energy Gun EM Pulse Gun Ballistic Gun Assault Rifle Ballistic Cannon Slug Cannon Launcher Grenade Launcher Build | -11 -10 -10 -10 ------- Run | Yrd Mat Min Sub Slots Evolved . | . . . . Power . | . . . . Propulsion . | . . . . Utility . | . . . . Weapon . | . . . . Parts Attached 60 | 8 18 10 24 Power 5 | 1 3 . 1 Engine 5 | 1 3 . 1 Core . | . . . . Reactor . | . . . . Propulsion 10 | 3 4 . 3 Treads . | . . . . Leg . | . . . . Wheel 4 | 3 . . 1 Hover 6 | . 4 . 2 Flight . | . . . . Utility 13 | 2 1 9 1 Device 7 | 1 . 5 1 Storage 4 | 1 . 3 . Processor 2 | . 1 1 . Hackware . | . . . . Protection . | . . . . Artifact . | . . . . Weapon 32 | 2 10 1 19 Energy Gun 1 | 1 . . . Energy Cannon . | . . . . Ballistic Gun 19 | 1 7 1 10 Ballistic Cannon 2 | . . . 2 Launcher 10 | . 3 . 7 Special Weapon . | . . . . Impact Weapon . | . . . . Slashing Weapon . | . . . . Piercing Weapon . | . . . . Special Melee Weapon . | . . . . Unidentified Prototypes 1 | . . 1 . Parts Lost 6 | . 1 . 5 Power 1 | . . . 1 Propulsion 5 | . 1 . 4 Utility . | . . . . Weapon . | . . . . Highest Loss Streak 2 | . 1 . 2 To Critical Strikes . | . . . . Average Slot Usage (%) 96 | . 99 98 87 Engine 11 | . 14 14 5 Wheel 5 | . 9 . 4 Hover 22 | . 18 28 22 Device 6 | . . 10 13 Storage 13 | . 14 12 14 Processor 7 | . 13 3 . Ballistic Gun 25 | . 25 28 22 Peak Build Rating 19 | 9 9 19 13 Average Rating 7 | 4 6 8 8 On Entrance 6 | . 9 7 8 Naked Turns . | . . . . Heaviest Build 22 | 13 13 21 22 Greatest Support 26 | 26 20 12 20 Greatest Overweight (x) 1 | . 1 1 1 Average Overweight (x) . | . . . . Largest Inventory Capacity 8 | 8 8 8 8 Average Capacity 7 | 6 8 7 8 Most Carried 8 | 6 8 8 8 Average Carried 7 | 1 7 7 7 Final Capacity 8 | 8 8 8 8 Final Carried 8 | 6 8 8 6 Class Distribution -------------------- 100% | Mutant Dominant Class ---------------- Mutant | -10/Materials Mutant | -10/Mines Mutant | -10/Subcaves Resources | -11 -10 -10 -10 ----------- Run | Yrd Mat Min Sub Matter Collected 2256 | 298 983 595 380 Remotely . | . . . . Salvage Created 2633 | 204 1453 744 232 Parts 237 | 18 135 62 22 Haulers Intercepted 2 | . 2 . . Recyclers Shooed 4 | . 3 1 . Parts Field Recycled . | . . . . Retrieved Matter . | . . . . Parts Self-Destructed 9 | . . . 9 Prevented . | . . . . Kills | -11 -10 -10 -10 ------- Run | Yrd Mat Min Sub Combat Hostiles Destroyed 29 | . 13 . 16 Guns 12 | . 6 . 6 AOE 17 | . 7 . 10 Classes Destroyed 9 | 2 6 . 1 Worker 31 | . 22 9 . Builder 11 | . 5 6 . Tunneler 12 | 4 3 5 . Hauler 2 | . 2 . . Recycler 10 | 1 5 4 . Watcher 3 | . 3 . . Swarmer 15 | . 6 . 9 Grunt 7 | . 7 . . Subdweller 7 | . . . 7 Best Kill Streak 10 | 4 10 4 5 Combat Bots Only 5 | . 3 . 5 Max Kills in Single Turn 3 | 2 3 1 2 Gunslinging 1 | . . . 1 Exploded 3 | . 3 . 2 Melee . | . . . . Uniques/NPCs Destroyed . | . . . . Combat | -11 -10 -10 -10 -------- Run | Yrd Mat Min Sub Hostile Shots Fired 107 | . 43 . 64 Missed 32 | . 11 . 21 Damage Taken 1072 | . 396 . 676 Core 274 | . 70 . 204 Absorbed by Shields . | . . . . Regen/Repaired (Parts) 50 | . 50 . . Core Remaining (%) 100 | 100 . . . Volleys Fired 223 | 6 112 62 43 Largest 2 | 2 2 2 2 Hottest 78 | 60 60 40 78 Shots Fired 427 | 12 218 124 73 Gun 393 | 12 211 124 46 Cannon 5 | . . . 5 Launcher 29 | . 7 . 22 Special . | . . . . Kinetic 375 | 6 194 124 51 Thermal . | . . . . Explosive 29 | . 7 . 22 Electromagnetic 23 | 6 17 . . Robot Hit Streak 14 | 4 13 14 7 Robot Miss Streak 5 | 1 5 5 3 Penetration Max . | . . . . Secondary Targets 1 | . . . 1 Max Gunslinging Chain 1 | . . . 1 Shots Hit Robots 251 | 8 135 74 34 Core Hits 125 | 6 69 28 22 Critical Kills 2 | . 1 1 . Critical Parts Destroyed 1 | . 1 . . Critical Strikes 4 | . 3 1 . Destroy 3 | . 2 1 . Corrupt 1 | . 1 . . Melee Attacks . | . . . . Impact . | . . . . Slashing . | . . . . Piercing . | . . . . Sneak Attacks . | . . . . Combat Hostiles . | . . . . Follow-up Attacks . | . . . . Damage Inflicted 4676 | 113 2201 1043 1319 Guns 3272 | 113 1743 1043 373 Cannons 23 | . . . 23 Explosions 1381 | . 458 . 923 Melee . | . . . . Ramming . | . . . . Kinetic 3097 | 61 1597 1043 396 Thermal 36 | . 36 . . Explosive 1345 | . 422 . 923 Electromagnetic 198 | 52 146 . . Impact . | . . . . Slashing . | . . . . Piercing . | . . . . Highest Corruption 2 | . 2 2 2 Average Corruption 2 | . 2 2 2 Corruption Purged . | . . . . Corruption Blocked . | . . . . Effects 30 | . 15 6 9 Message Errors 4 | . 2 1 1 Matter Fused 7 | . 2 2 3 Heat Flow Errors 4 | . 2 . 2 Energy Discharges 3 | . 3 . . Parts Rejected 1 | . . . 1 Parts Fused 1 | . . 1 . Data Loss (minor) 5 | . 3 . 2 Data Loss (major) 3 | . 1 2 . Weapon Failures 2 | . 2 . . Overload Shots . | . . . . Overflow Damage 66 | . 18 . 48 Projectiles . | . . . . Explosions 66 | . 18 . 48 Melee . | . . . . Knockbacks . | . . . . Impact . | . . . . Kinetic . | . . . . Secondary . | . . . . Self-Inflicted Damage 93 | . 22 . 71 Shots 3 | . 1 . 2 Rammed . | . . . . Targets Rammed . | . . . . Kicked . | . . . . Crushed . | . . . . Highest Temperature 264 | . 264 . 200 Average Temperature 80 | . 78 . 87 Received Heat Transfer 270 | . 177 . 93 Siege Activations . | . . . . Robots Corrupted . | . . . . Combat Hostiles . | . . . . Parts Fried . | . . . . Impact Corruptions . | . . . . Robots Melted . | . . . . Combat Hostiles . | . . . . Parts Melted . | . . . . Heat Transferred 50 | . 50 . . Parts Sabotaged . | . . . . Parts Stolen . | . . . . Parts Stripped . | . . . . Power Chain Reactions 1 | . 1 . . Alert | -11 -10 -10 -10 ------- Run | Yrd Mat Min Sub Peak Influence 385 | 25 385 161 . Initial 101 | . 16 101 . Average 160 | 9 225 77 . Maximum Alert Level 1 | . 1 . . Low Security (%) 63 | 100 37 100 . Level 1 36 | . 62 . . Level 2 . | . . . . Level 3 . | . . . . Level 4 . | . . . . Level 5 . | . . . . High Security . | . . . . Max Security . | . . . . Squads Dispatched 3 | . 3 . . Investigation 3 | . 3 . . Extermination . | . . . . Reinforcement . | . . . . Assault . | . . . . Garrison . | . . . . Intercept . | . . . . Searches Triggered . | . . . . Construction Impeded . | . . . . Haulers Reinforced . | . . . . Active Scanning Responses . | . . . . Cargo Convoy Interrupts . | . . . . Stealth | -11 -10 -10 -10 --------- Run | Yrd Mat Min Sub Distress Signals 1 | . 1 . . Communications Jammed . | . . . . Distress Signals . | . . . . Times Spotted 44 | . 20 . 24 Peak Tracking Total 6 | . 4 . 6 Tactical Retreats 5 | . 2 . 3 Traps | -11 -10 -10 -10 ------- Run | Yrd Mat Min Sub Traps Triggered 3 | . 2 . 1 Indirectly . | . . . . Trap Hack Attempts . | . . . . Triggered . | . . . . Disarmed . | . . . . Reprogrammed . | . . . . Reused . | . . . . Traps Extracted . | . . . . Installed . | . . . . Triggered 1 | . . 1 . Machines | -11 -10 -10 -10 ---------- Run | Yrd Mat Min Sub Machines Disabled . | . . . . Max in Single Turn . | . . . . Machines Repaired . | . . . . Machines Dismantled . | . . . . Machines Sabotaged . | . . . . Overloaded Fab Kills . | . . . . Hacking | -11 -10 -10 -10 --------- Run | Yrd Mat Min Sub Machines Accessed 13 | . 11 1 1 Terminals 8 | . 8 . . Fabricators . | . . . . Repair Stations 1 | . 1 . . Recycling Units 2 | . 2 . . Scanalyzers . | . . . . Garrison Access . | . . . . Total Hacks 49 | . 44 1 4 Successful 27 | . 22 1 4 Failed 22 | . 22 . . Catastrophic 3 | . 3 . . Database Lockouts . | . . . . Manual 21 | . 21 . . Terminals 37 | . 37 . . Fabricators . | . . . . Repair Stations 2 | . 2 . . Recycling Units 5 | . 5 . . Scanalyzers . | . . . . Garrison Access . | . . . . Terminal Hacks 22 | . 17 1 4 Record 4 | . . . 4 Robot Schematic 1 | . 1 . . Robot Analysis 11 | . 11 . . Prototype ID Bank 5 | . 5 . . Open Door 1 | . . 1 . Fabricator Hacks . | . . . . Repair Station Hacks 2 | . 2 . . Scan Component 1 | . 1 . . Repair 1 | . 1 . . Recycling Unit Hacks 3 | . 3 . . Process 1 | . 1 . . Retrieve Matter 1 | . 1 . . Retrieve Components 1 | . 1 . . Scanalyzer . | . . . . Garrison Access Hacks . | . . . . Unauthorized Hacks . | . . . . Terminals . | . . . . Fabricators . | . . . . Repair Stations . | . . . . Recycling Units . | . . . . Scanalyzers . | . . . . Garrison Access . | . . . . Data Cores Recovered . | . . . . Used . | . . . . Hacking Detections 10 | . 10 . . Full Trace Events 6 | . 6 . . Feedback Events . | . . . . Feedback Blocked . | . . . . Robot Schematics Acquired 1 | . 1 . . Robots Built . | . . . . Authchips . | . . . . Time . | . . . . Total Robot Build Rating . | . . . . Part Schematics Acquired . | . . . . Parts Built . | . . . . Authchips . | . . . . Time . | . . . . Total Part Build Rating . | . . . . Parts Repaired 1 | . 1 . . Time 26 | . 26 . . Parts Recycled . | . . . . Recycled Matter 110 | . 110 . . Retrieved Matter 110 | . 110 . . Retrieved Components 5 | . 5 . . Parts Scanalyzed . | . . . . Part Schematics Acquired . | . . . . Parts Damaged . | . . . . Bothacking | -11 -10 -10 -10 ------------ Run | Yrd Mat Min Sub Used RIF Installer . | . . . . Robots Hacked . | . . . . Non-combat . | . . . . Combat . | . . . . Robot Hacks Applied . | . . . . Relay Couplers Released . | . . . . Fabnet Peak Effective % . | . . . . Robots Rewired . | . . . . Allies Hacked . | . . . . Hacks Repelled . | . . . . Allies | -11 -10 -10 -10 -------- Run | Yrd Mat Min Sub Total Allies . | . . . . Largest Group . | . . . . Highest-Rated Group . | . . . . Highest-Rated Ally . | . . . . Total Orders 2 | . . 2 . EXPLORE 2 | . . 2 . Ally Attacks . | . . . . Total Damage . | . . . . Kills . | . . . . Allies Corrupted . | . . . . Allies Melted . | . . . . Intel | -11 -10 -10 -10 ------- Run | Yrd Mat Min Sub Robot Analysis Total 11 | . 11 . . Derelict Logs Recovered 3 | . . 2 1 Drone Launches 16 | . . 16 . Drone Recoveries . | . . . . Exploration | -11 -10 -10 -10 ------------- Run | Yrd Mat Min Sub Turns Passed 2879 | 81 1243 820 735 Spaces Moved 2809 | 55 1308 679 767 Core 3 | 3 . . . Treads . | . . . . Legs . | . . . . Wheels 509 | 52 310 . 147 Hover 2297 | . 998 679 620 Flight . | . . . . Fastest Speed 50 | 50 56 56 56 Average Speed 71 | 85 61 89 71 Slowest Speed 120 | 90 120 116 120 Overloaded Moves . | . . . . Propulsion Burnouts . | . . . . Robots Hopped . | . . . . Cave-ins Triggered . | . . . . Exploration Rate (%) 59 | 3 98 99 38 Regions Visited 3 Branch Regions 2 Pre-discovered Areas 1 | . . 1 . Known Exits Taken . | . . . . Unknown Exits Taken 3 | 1 1 1 . Scrap Searched 6 | . . 1 5 Spaces Dug 10 | . 8 . 2 Terrain Destroyed 133 | . 40 . 93 Melee . | . . . . Projectile 3 | . . . 3 AOE 130 | . 40 . 90 Terrain Rammed . | . . . . Walls Destroyed . | . . . . Machines Disabled . | . . . . Actions | -11 -10 -10 -10 --------- Run | Yrd Mat Min Sub Total 3248 | 73 1526 776 873 Wait 87 | . 52 2 33 Move 2806 | 54 1307 678 767 Hop . | . . . . Pick Up 30 | 5 15 9 1 Fast Attach 22 | 7 7 5 3 Attach 9 | . 1 3 5 Detach 9 | . 1 5 3 Swap 29 | 1 10 2 16 Drop 32 | . 20 10 2 Fire 223 | 6 112 62 43 Melee . | . . . . Ram . | . . . . Kick . | . . . . Crush . | . . . . Escape Stasis . | . . . . Rewire 1 | . 1 . . Trap . | . . . . Miscellaneous . | . . . . Route ------- -11/Scrapyard -10/Materials (discovered 4 exits: [*Mat x3] / *Min) -10/Mines (discovered 3 exits: [*Mat x2] / *Sub) -10/Subcaves (discovered 3 exits: [*Mat x2] / [Rec]) History --------- Turn | Location | Event 33 | -11/Scrapyard | Discovered new exit (range 14) 82 | -11/Scrapyard | Entered Materials 309 | -10/Materials | Discovered new exit (range 5) 317 | -10/Materials | Build established: Mutant 515 | -10/Materials | Discovered new exit (range 4) 542 | -10/Materials | Discovered new exit (range 15) 649 | -10/Materials | Discovered new exit (range 7) 680 | -10/Materials | Repaired Assault Rifle 1325 | -10/Materials | Entered Mines 1331 | -10/Mines | Learned 4 Materials zone layouts 1353 | -10/Mines | Discovered new exit (range 13) 1439 | -10/Mines | Found the Drone Emporium 1444 | -10/Mines | Found Prototype Device 1459 | -10/Mines | Identified Decoy Drone Bay 1494 | -10/Mines | Discovered new exit (range 35) 1507 | -10/Mines | Learned Materials emergency access door positions 1531 | -10/Mines | Lost 4 allies 1590 | -10/Mines | YI-UF0 nonchalantly dropped a Grenade Launcher on the ground 1601 | -10/Mines | Learned location of Storage (-9) 1653 | -10/Mines | Discovered new exit (range 14) 1758 | -10/Mines | A weapon hastily lodged in a ceiling crevice suddenly fell to the ground 2145 | -10/Mines | Entered Subcaves 2146 | -10/Subcaves | Shifting Twisted Machinery released Mak. Hacking Suite 2150 | -10/Subcaves | Shifting Twisted Machinery released Riot Gun 2223 | -10/Subcaves | Ambushed by Subdwellers from Twisted Machinery 2275 | -10/Subcaves | Discovered new exit (range 16) 2300 | -10/Subcaves | Visited Clippyterm 2302 | -10/Subcaves | Learned 40 Factory zone layouts 2319 | -10/Subcaves | Discovered new exit (range 6) 2340 | -10/Subcaves | Core integrity fell below 50% 2499 | -10/Subcaves | Core integrity fell below 20% 2578 | -10/Subcaves | Discovered new exit (range 12) 2880 | -10/Subcaves | Destroyed by 3D-ZHL(R) with Subdweller Machine Gun Last Messages --------------- 02636_ M8-2E9(R) destroyed. 02638_ Subatomizers dissect the Sub. Optics. 02647_ Acquired 40 matter. 02653_ Acquired Sub. Monowheel. 02666_ Acquired Sub. Power Source. 02715_ B%HAP>YKWPSYZUR <, PTUKUTFRP,S1 02760_ ON-NDC(R) destroyed. 02765_ EV-UOV(R) affixes Scrap Shield Fragment to Scrap Shield. 02766_ EV-UOV(R) destroyed. 02770_ System corrupted: Matter fused (-9). 02774_ The unstable cave ceiling collapses. 02779_ Acquired 12 matter. 02811_ Slug penetrates Wall. 02823_ System corrupted: Heat flow error (+140). 02837_ S-10 Pest destroyed. 02843_ Hover Unit destroyed. 02843_ Destroyed Hover Unit. 02865_ The unstable cave ceiling collapses. 02876_ System corrupted: Slug Cannon rejected. 02876_ Acquired Slug Cannon. Map ----- +----------------------------------------------------+ | ?????????????????????????????????????????????????? | | ?????????????????????????????????????????????????? | | ?????????????????????????????????????????????????? | | ?????????????????????????????????????????????????? | | ?????????????????????????????????????????????????? | | ???????????????????????????? ?????????????????? | | ??????????????????????????## ##?????????????????? | | ??????????????????????????## ##? ???????????????? | | ??????????????????????????# ## ??????????????? | | ?????????????????????????## ### ?????????????? | | ???????????????????????#### ## ???????????????? | | ??????????????????????#### ????????????????? | | ??????????????????????### # ?????????????????? | | ????????????????????#### R ####???????????????? | | ???????????????????##### #####???????????????? | | ???????????????????### % #""##???????????????? | | ???????????????????## "##???????????????? | | ???????????????????## ##"##???????????????? | | ???????????????????### ###??????????????????? | | ???????????????######## ### ??????????????????? | | ???????????????######## ### ?????????????????? | | ???????????????## ## ### "" #???????????? | | ???????????????### # # ## ""##???????????? | | ??????????????### # "" ""##???????????? | | ??????????????### " ###???????????? | | ?????????????? # @ ""##????????????? | | ??????????????#### "###????????????? | | ??????????????#### ###"""" ""### ###????????????? | | ???????????????## ## ######?????????????? | | ???????????????#### ### #####?????????????? | | ???????????????#### ## ####????????????? | | ????????????????### ###????????????? | | ????????????????### ##????????????? | | ????????????????## ##????????????? | | ????????????????## ## ###????????????? | | ????????????????### ### ###????????????? | | ????????????????## #### ##????????????? | | #???????????????### ### #####????????????? | | ##??????????????## ## #####????????????? | | ##??????????????### ## & ##???????????????? | | ###?????????????### ### &# ##???????????????? | | ####?????????????##"""## !& ####???????????????? | | ####????????????## ### ###???????????????? | | ###????????????# # ## " "" ###??????????????? | | ##???????????#### ## """" ####?????????????? | | ##???????????#### """" ###?????????????? | | ###???????????## ##?????????????? | | ""###???????????### ##?????????????? | | ""###???????????#### """" ###????????????? | | "###????????????#### " " ##????????????? | +----------------------------------------------------+ Best States ------------- Heat Dissipation 25 Energy Generation 15 Energy Capacity 200 Matter Stores 300 Matter Capacity 300 Sight Range 16 Terrain Scan Range 16 Terrain Scan Density 85 Evasion (%) 53 Targeting Accuracy 5 Item Schematics ----------------- None Robot Schematics ------------------ M-13 Machinist | -10/Materials | Hacked Fabricated ------------ Nothing Alien Tech Used ----------------- None Achievements -------------- None Challenges ------------ None Game ------ Seed SurgeLatentBlaster Manual? 0 Play Time 00:30:48 Cumulative 475.3 hours Start 2024.09.22 @ 14:16:57 End 2024.09.22 @ 14:55:23 Sessions 1 Manual Loads 0 Difficulty Rogue Special Mode None Game No. 183 Rogue 183 Adventurer 0 Explorer 0 Win Type - Total 4 Types 0/0/2/2/0/0/0/0/0 Lore% 47 Gallery% 75 Achievement% 66 Wizard Run 0 Options --------- Layout 0 ASCII 0 Keyboard 1 Movement Arrows Keybinds 0 Fullscreen 1 Font 12/Proggy Map View 83x54 Zoom Use 0% Tactical HUD 1 Map Filters NONE Filters NONE Steam 0 RUN: 07dcc1ee-4259-4569-bab0-6de3286b442d